bitfinex/quotes_SOLUSD_20241225
["timestamp","ask_amount","ask_price","bid_price","bid_amount"]
[1735117710019,6.2856,198.06,198.01,23.776884]
[1735117711728,6.2856,198.06,197.96,0.75731213]
[1735117711908,6.2856,198.06,197.93,0.75731213]
[1735117712430,18.9081,198.06,197.93,0.75731213]
[1735117712628,18.9081,198.06,197.92,30.0]
[1735117712825,0.12549,198.05,197.9,30.0]
[1735117713022,0.12549,198.05,197.91,0.75761134]
[1735117713200,0.12549,198.05,197.92,30.0]
[1735117713732,0.12549,198.05,197.95,20.0]
[1735117714231,1.7553,198.04,197.95,20.0]
[1735117715601,1.7553,198.04,197.97,20.0]
[1735117718053,1.7553,198.01,197.88,30.0]
[1735117718216,7.7802,198.01,197.89,0.75772657]
[1735117719713,7.7802,198.01,197.9,23.776884]
[1735117721043,7.7802,198.01,197.92,23.776884]
[1735117721208,7.7802,198.01,197.92,53.776884]
[1735117721533,7.7802,198.01,197.94,23.776884]
[1735117731850,7.7802,198.01,197.91,0.75759538]
[1735117732059,7.7802,198.01,197.93,20.0]
[1735117733759,7.7802,198.01,197.91,20.0]
[1735117733937,7.7802,198.01,197.92,23.776884]
[1735117734267,7.7802,198.01,197.91,20.0]
[1735117735531,7.7802,198.01,197.89,20.75765217]
[1735117736035,7.7802,198.01,197.9,23.776884]
[1735117736236,7.7802,198.01,197.9,53.776884]
[1735117736436,7.7802,198.01,197.91,0.75767251]
[1735117737655,7.7802,198.01,197.92,23.776884]
[1735117742244,7.7802,198.01,197.92,53.776884]
[1735117742577,7.7802,198.01,197.92,54.53446427]
[1735117742753,7.7802,198.01,197.95,23.776884]
[1735117745029,7.7802,198.01,197.97,30.0]
[1735117745238,7.7802,198.01,198.0,23.776884]
[1735117745437,6.0249,198.01,198.0,23.776884]
[1735117746664,8.5135,198.06,198.0,23.776884]
[1735117753979,8.5135,198.06,197.99,20.0]
[1735117754195,8.5135,198.06,197.95,0.7574641]
[1735117755590,8.5135,198.06,197.96,23.776884]
[1735117756163,8.5135,198.06,197.95,20.0]
[1735117760279,0.12549,198.05,197.95,20.0]
[1735117760467,6.3127,198.04,197.9,30.0]
[1735117760789,6.3127,198.02,197.9,30.0]
[1735117761377,6.3127,198.02,197.91,0.75768698]
[1735117761961,6.3127,198.02,197.92,23.776884]
[1735117763402,6.3127,198.02,197.92,53.776884]
[1735117763565,6.3127,198.02,197.93,0.75757391]
[1735117775991,6.3127,198.02,197.92,23.776884]
[1735117776170,6.3127,198.02,197.94,20.0]
[1735117776374,6.1433,198.0,197.91,20.0]
[1735117778101,6.1433,198.0,197.93,20.0]
[1735117781696,6.1433,198.0,197.93,20.75760876]
[1735117782103,6.1433,198.0,197.97,20.0]
[1735117784204,6.1433,198.0,197.95,0.75746047]
[1735117784379,6.1433,198.0,197.96,23.776884]
[1735117789510,6.1433,198.0,197.96,53.776884]
[1735117789801,7.8803,198.09,198.01,23.776884]
[1735117790018,7.8803,198.09,198.02,30.75723473]
[1735117790190,7.8803,198.09,198.03,23.776884]
[1735117791899,7.8803,198.09,198.02,0.75723473]
[1735117792102,7.8803,198.09,198.02,20.0]
[1735117792406,1.8048,198.07,197.95,30.75739182]
[1735117792590,6.0755,198.06,197.95,30.75739182]
[1735117792786,6.0755,198.06,197.95,0.75739182]
[1735117793514,6.0755,198.06,197.94,0.75750596]
[1735117793819,6.0755,198.06,197.96,20.0]
[1735117793991,6.0755,198.06,197.94,20.75750596]
[1735117794193,6.0755,198.06,197.95,23.776884]
[1735117797714,1.8048,198.05,197.95,23.776884]
[1735117798122,6.0755,198.04,197.95,20.0]
[1735117798305,6.0755,198.02,197.9,0.7575694]
[1735117799117,6.0755,198.02,197.89,0.75769818]
[1735117799419,6.0755,198.02,197.9,30.0]
[1735117799593,6.0755,198.02,197.92,23.776884]
[1735117799793,6.0755,198.02,197.93,0.757663]
[1735117800107,6.0755,198.02,197.95,23.776884]
[1735117800294,6.0755,198.02,197.94,30.0]
[1735117800295,6.0755,198.02,197.96,0.7574911]
[1735117800717,6.0755,198.02,197.95,23.776884]
[1735117802304,6.0755,198.02,197.94,23.776884]
[1735117802921,6.0755,198.02,197.94,53.776884]
[1735117803102,6.0755,198.02,197.94,54.53441842]
[1735117804025,6.0755,198.02,197.94,24.53441842]
[1735117804537,6.0755,198.02,197.94,54.53441842]
[1735117807428,6.0755,198.02,197.98,23.776884]
[1735117807908,6.0755,198.02,197.98,20.0]
[1735117808726,6.0755,198.02,197.96,20.0]
[1735117809233,6.0755,198.02,197.98,20.0]
[1735117809812,6.0755,198.02,197.98,20.75741329]
[1735117810614,6.0755,198.02,198.0,20.0]
[1735117810818,6.0755,198.02,198.0,23.776884]
[1735117815545,6.0755,198.02,197.99,0.75735416]
[1735117815833,6.0755,198.02,197.98,20.0]
[1735117816335,6.0755,198.02,197.97,20.0]
[1735117816509,6.0755,198.02,197.98,23.776884]
[1735117819009,6.0755,198.02,197.97,50.75745278]
[1735117819010,6.0755,198.02,198.0,23.776884]
[1735117819725,6.0755,198.02,197.98,20.0]
[1735117821737,6.0755,198.02,197.97,20.0]
[1735117826325,6.0755,198.02,197.98,0.75743633]
[1735117828715,1.8048,198.03,197.99,73.776884]
[1735117828915,6.2343,198.07,198.04,20.0]
[1735117829256,6.2343,198.07,198.06,20.0]
[1735117829412,6.2343,198.07,198.06,43.776884]
[1735117829617,8.0732,198.13,198.08,20.0]
[1735117829969,8.0732,198.13,198.09,20.0]
[1735117830248,8.0732,198.13,198.1,20.0]
[1735117832427,8.0732,198.13,198.11,53.776884]
[1735117832679,6.2343,198.13,198.11,53.776884]
[1735117832840,8.0732,198.18,198.11,53.776884]
[1735117833864,8.0732,198.18,198.14,20.0]
[1735117834361,1.8389,198.22,198.16,23.776884]
[1735117834528,1.8389,198.22,198.18,23.776884]
[1735117835032,1.8389,198.22,198.15,0.75669847]
[1735117835359,1.8389,198.22,198.06,108.34438069]
[1735117835360,1.8389,198.22,198.1,23.776884]
[1735117836363,8.0732,198.21,198.1,20.0]
[1735117839062,8.0732,198.21,198.08,20.0]
[1735117839434,0.12549,198.2,198.08,20.0]
[1735117839629,8.0732,198.21,198.08,20.0]
[1735117839851,8.0732,198.21,198.08,20.75702066]
[1735117840358,8.0732,198.21,198.1,20.0]
[1735117845164,8.0732,198.21,198.12,20.0]
[1735117847355,8.0732,198.21,198.14,20.0]
[1735117848269,8.0732,198.21,198.12,23.776884]
[1735117852257,8.0732,198.21,198.1,20.0]
[1735117855060,8.0732,198.21,198.11,23.776884]
[1735117857889,8.0732,198.21,198.11,53.776884]
[1735117858256,8.0732,198.21,198.14,20.0]
[1735117862194,8.0732,198.21,198.11,23.776884]
[1735117862403,6.4394,198.2,198.09,23.776884]
[1735117864297,6.4394,198.2,198.09,53.776884]
[1735117868322,6.4394,198.2,198.12,20.0]
[1735117873012,6.4394,198.2,198.14,20.0]
[1735117873521,6.4394,198.2,198.17,23.776884]
[1735117874029,6.4394,198.2,198.19,20.0]
[1735117876626,6.4394,198.2,198.17,23.776884]
[1735117877020,6.4394,198.2,198.13,0.75665056]
[1735117877229,6.4394,198.2,198.16,23.776884]
[1735117877404,6.4394,198.2,198.14,23.776884]
[1735117877805,6.4394,198.2,198.17,20.0]
[1735117878499,6.4394,198.2,198.11,30.0]
[1735117880129,6.4394,198.2,198.12,23.776884]
[1735117880425,6.4394,198.2,198.1,0.75685556]
[1735117880609,6.4394,198.2,198.08,0.75695207]
[1735117880805,1.8867,198.19,198.07,30.0]
[1735117881316,6.6578,198.16,198.03,44.58823301]
[1735117881520,6.6578,198.16,198.03,30.75716877]
[1735117881829,6.6578,198.14,198.04,30.0]
[1735117882008,6.6578,198.14,198.03,0.75716877]
[1735117883628,6.6578,198.12,198.01,0.75718713]
[1735117883826,6.6578,198.12,197.98,30.75728989]
[1735117884033,6.6578,198.1,197.98,0.75728989]
[1735117884230,6.6578,198.1,197.97,7.90671623]
[1735117884410,1.8867,198.06,197.97,7.90671623]
[1735117884819,1.8867,198.06,197.93,30.0]
[1735117885535,1.8867,198.06,197.92,0.75759765]
[1735117885828,6.6578,198.03,197.91,37.90671623]
[1735117886003,6.6578,198.03,197.94,30.0]
[1735117887122,6.6578,198.03,197.95,23.776884]
[1735117889006,6.6578,198.03,197.99,20.0]
[1735117890260,6.6578,198.03,198.0,23.776884]
[1735117890430,6.6578,198.03,198.02,20.0]
[1735117894740,6.174,198.08,198.03,20.0]
[1735117895054,6.174,198.08,198.05,20.0]
[1735117896244,6.174,198.08,198.04,20.0]
[1735117897652,6.174,198.08,198.02,23.776884]
[1735117897873,6.174,198.08,197.99,23.776884]
[1735117899261,6.174,198.08,198.02,20.0]
[1735117900380,6.174,198.08,198.03,20.0]
[1735117901758,6.174,198.08,198.02,20.0]
[1735117902081,8.0846,198.18,198.0,30.12549]
[1735117902266,8.0846,198.18,198.09,23.776884]
[1735117902455,8.0846,198.18,198.09,24.53387264]
[1735117902656,8.0846,198.18,198.11,23.776884]
[1735117902973,8.0846,198.18,198.11,24.53378405]
[1735117903287,8.0846,198.18,198.14,20.0]
[1735117905172,8.0846,198.18,198.15,20.0]
[1735117910821,8.0846,198.18,198.13,20.0]
[1735117914105,8.0846,198.18,198.1,0.75693318]
[1735117914271,8.0846,198.18,198.11,20.0]
[1735117923550,8.0846,198.18,198.09,20.0]
[1735117923853,0.12549,198.17,198.09,20.0]
[1735117924349,0.12549,198.17,198.08,20.0]
[1735117925462,0.12549,198.17,198.09,20.0]
[1735117931763,0.12549,198.17,198.07,0.75700795]
[1735117931971,0.12549,198.17,198.06,20.0]
[1735117932363,8.0846,198.18,198.13,50.0]
[1735117932683,8.2871,198.23,198.18,20.0]
[1735117932840,8.2871,198.23,198.19,30.75666318]
[1735117933242,8.2871,198.23,198.2,23.776884]
[1735117938872,8.2204,198.33,198.21,30.7565698]
[1735117939074,8.2204,198.33,198.23,30.0]
[1735117939292,8.2204,198.33,198.24,23.776884]
[1735117941192,8.2204,198.33,198.23,20.75641791]
[1735117941494,8.2204,198.33,198.23,20.0]
[1735117941883,0.12549,198.32,198.23,20.0]
[1735117956035,0.12549,198.32,198.21,20.0]
[1735117957037,8.56129,198.32,198.21,20.0]
[1735117957348,0.12549,198.28,198.14,30.75666017]
[1735117957507,0.12549,198.26,198.14,30.75666017]
[1735117958532,0.12549,198.26,198.15,23.776884]
[1735117958835,0.12549,198.26,198.18,20.0]
[1735117959925,0.12549,198.26,198.16,0.75673536]
[1735117959926,0.12549,198.26,198.17,20.0]
[1735117960133,6.6553,198.23,198.12,30.75678744]
[1735117960333,0.12549,198.22,198.12,0.75678744]
[1735117961140,0.12549,198.22,198.11,0.75689227]
[1735117961733,0.12549,198.22,198.13,20.0]
[1735117970049,0.12549,198.22,198.11,20.7568815]
[1735117974250,0.12549,198.22,198.11,50.7568815]
[1735117974431,6.6553,198.23,198.11,20.7568815]
[1735117974432,8.2551,198.21,198.11,20.7568815]
[1735117974841,8.2551,198.21,198.12,20.0]
[1735117978863,0.12549,198.18,198.07,30.75692116]
[1735117979056,0.12549,198.18,198.07,0.75692116]
[1735117979358,1.8218,198.17,198.07,0.75692116]
[1735117979565,0.12549,198.16,198.07,0.75692116]
[1735117979949,0.12549,198.16,198.06,0.75710443]
[1735117980457,6.1052,198.15,198.06,0.75714037]
[1735117980664,6.1052,198.15,198.09,30.0]
[1735117980865,6.1052,198.15,198.1,0.75689216]
[1735117981043,6.1052,198.15,198.11,30.0]
[1735117981239,6.1052,198.15,198.12,0.75686769]
[1735117981738,6.1052,198.15,198.14,20.0]
[1735117984067,1.8218,198.17,198.14,20.0]
[1735117984270,6.1052,198.2,198.16,20.0]
[1735117984647,6.1052,198.2,198.16,20.75670984]
[1735117985049,1.27077293,198.22,198.16,20.0]
[1735117985568,1.27077293,198.22,198.14,20.0]
[1735117987264,0.12549,198.21,198.12,20.0]
[1735117987771,0.12549,198.21,198.1,20.0]
[1735117987969,23.902374,198.21,198.04,0.75707758]
[1735117988179,6.1052,198.16,198.04,0.75707758]
[1735117988366,0.12549,198.13,198.02,0.75718438]
[1735117989644,0.12549,198.13,198.03,30.0]
[1735117989974,0.12549,198.13,198.03,30.75718319]
[1735117990883,0.12549,198.13,198.03,30.0]
[1735117991494,0.12549,198.11,198.03,20.0]
[1735117991686,0.12549,198.11,198.01,30.0]
[1735117991874,7.927,198.12,198.01,30.75733081]
[1735117992794,7.927,198.12,198.01,0.75733081]
[1735117992986,7.927,198.12,198.02,20.0]
[1735117997201,7.927,198.12,198.02,50.0]
[1735118008301,7.927,198.12,198.03,20.0]
[1735118030140,0.12549,198.11,198.02,20.0]
[1735118035844,0.12549,198.11,198.04,20.0]
[1735118036048,7.927,198.12,198.04,20.0]
[1735118047155,7.927,198.12,198.09,20.0]
[1735118047328,1.8218,198.12,198.1,30.0]
[1735118047663,1.8052,198.16,198.11,0.75692014]
[1735118051759,1.8052,198.16,198.13,20.0]
[1735118053261,6.2947,198.17,198.13,20.0]
[1735118053456,6.2947,198.17,198.13,20.75682036]
[1735118054961,1.8052,198.21,198.14,53.776884]
[1735118056761,1.8052,198.21,198.14,23.776884]
[1735118058377,1.8052,198.21,198.13,20.0]
[1735118058861,0.12549,198.2,198.11,20.0]
[1735118059862,6.3692,198.19,198.11,20.0]
[1735118060061,0.12549,198.18,198.09,20.75698521]
[1735118060361,0.12549,198.18,198.09,20.0]
[1735118060552,0.12549,198.18,198.07,0.75702806]
[1735118060863,0.12549,198.16,198.05,0.7570958]
[1735118062175,0.12549,198.16,198.07,20.0]
[1735118063081,0.12549,198.14,198.04,5.64688232]
[1735118063367,0.12549,198.14,198.06,20.0]
[1735118063745,0.12549,198.14,198.05,20.0]
[1735118064564,1.7701,198.13,198.05,20.0]
[1735118067656,1.7701,198.13,198.06,0.75722113]
[1735118074064,1.7701,198.13,198.08,23.776884]
[1735118074687,1.7701,198.13,198.08,24.53391077]
[1735118077382,1.7701,198.13,198.09,30.0]
[1735118077586,1.7701,198.13,198.1,0.7569336]
[1735118079785,6.3692,198.15,198.11,30.0]
[1735118079991,6.3692,198.15,198.12,23.776884]
[1735118087269,6.3692,198.15,198.11,20.0]
[1735118100616,6.3692,198.15,198.13,20.0]
[1735118100804,1.752,198.18,198.15,20.0]
[1735118101007,1.752,198.18,198.1,30.0]
[1735118104321,1.752,198.18,198.12,30.0]
[1735118104495,1.752,198.18,198.13,0.75681686]
[1735118104817,1.752,198.18,198.15,20.0]
[1735118108030,6.0597,198.2,198.16,53.776884]
[1735118108226,6.0597,198.2,198.17,0.75669157]
[1735118108399,1.9258,198.23,198.19,20.0]
[1735118109320,1.9258,198.23,198.19,20.75662296]
[1735118109509,1.9258,198.23,198.21,20.0]
[1735118111500,1.9258,198.23,198.16,23.776884]
[1735118111825,1.9258,198.23,198.14,0.75658768]
[1735118112510,1.9258,198.23,198.13,0.75680014]
[1735118113545,1.9258,198.23,198.15,20.0]
[1735118115012,1.9258,198.23,198.15,20.75674288]
[1735118116720,1.9258,198.23,198.17,20.0]
[1735118118944,1.9258,198.23,198.15,20.75674288]
[1735118119117,1.9258,198.23,198.15,20.0]
[1735118119820,0.12549,198.22,198.15,20.0]
[1735118120023,0.12549,198.22,198.11,6.40370003]
[1735118120236,0.12549,198.2,198.09,0.75695494]
[1735118120617,1.8809,198.19,198.09,0.75695494]
[1735118121729,1.8809,198.19,198.1,23.776884]
[1735118123330,1.8809,198.19,198.1,53.776884]
[1735118123532,1.8809,198.19,198.1,54.53382682]
[1735118124555,1.8809,198.19,198.1,53.776884]
[1735118128543,1.8809,198.19,198.1,23.776884]
[1735118128743,1.8809,198.19,198.12,20.0]
[1735118130060,2.01159,198.16,198.05,13.55359855]
[1735118130761,2.01159,198.16,198.05,5.64688232]
[1735118133433,0.12549,198.14,198.05,5.64688232]
[1735118134260,0.12549,198.14,198.05,23.776884]
[1735118136669,6.1077,198.15,198.08,20.0]
[1735118136962,6.1077,198.15,198.09,30.0]
[1735118137181,6.1077,198.15,198.1,23.776884]
[1735118137576,6.1077,198.15,198.09,30.0]
[1735118137979,6.1077,198.15,198.1,20.0]
[1735118138886,6.04697347,198.15,198.1,20.0]
[1735118139344,6.04697347,198.15,198.08,20.0]
[1735118140576,6.04697347,198.15,198.05,23.776884]
[1735118142956,6.04697347,198.15,198.05,53.776884]
[1735118143157,6.04697347,198.15,198.05,54.5340087]
[1735118143479,6.04697347,198.15,198.08,20.0]
[1735118144379,6.04697347,198.15,198.08,20.75708229]
[1735118145486,6.04697347,198.15,198.08,50.0]
[1735118148780,6.04697347,198.15,198.09,0.75699694]
[1735118153268,6.04697347,198.15,198.11,50.0]
[1735118153462,6.04697347,198.15,198.12,0.75685947]
[1735118157297,6.04697347,198.15,198.11,20.0]
[1735118158094,6.04697347,198.15,198.12,20.0]
[1735118161704,6.04697347,198.15,198.11,20.0]
[1735118161873,6.04697347,198.15,198.06,6.40388818]
[1735118163107,6.04697347,198.15,198.1,20.0]
[1735118163277,6.04697347,198.15,198.09,20.0]
[1735118163476,6.04697347,198.15,198.07,20.0]
[1735118168230,0.12549,198.14,198.07,20.0]
[1735118168510,1.8018,198.11,198.02,36.40401699]
[1735118169877,1.8018,198.11,198.03,23.776884]
[1735118170205,1.8018,198.11,198.04,0.7571701]
[1735118173422,6.4557,198.1,198.04,0.7571701]
[1735118175824,1.923,198.08,198.02,5.64688232]
[1735118176026,6.4206,198.06,197.97,0.75724518]
[1735118176196,6.4206,198.06,197.96,7.90671623]
[1735118176197,0.12549,198.05,197.96,7.90671623]
[1735118176398,1.923,198.04,197.96,7.90671623]
[1735118176897,1.923,198.04,197.93,0.75757766]
[1735118177930,1.923,198.04,197.94,23.776884]
[1735118178319,1.923,198.04,197.94,53.776884]
[1735118178521,1.923,198.04,197.95,0.75755355]
[1735118184962,1.923,198.04,197.97,23.776884]
[1735118185168,1.923,198.04,197.98,0.75738565]
[1735118186372,1.923,198.04,197.99,20.0]
[1735118197685,1.923,198.04,198.0,24.53430315]
[1735118197986,1.8716,198.1,198.06,20.0]
[1735118198283,1.8716,198.1,198.08,23.776884]
[1735118201484,1.8716,198.1,198.07,0.75707719]
[1735118201783,1.8716,198.1,198.04,20.0]
[1735118203578,1.8716,198.1,198.02,20.75714213]
[1735118203774,1.8716,198.1,198.03,23.776884]
[1735118204487,1.8716,198.1,198.04,0.75725422]
[1735118205183,1.8716,198.1,198.05,23.776884]
[1735118205353,1.8716,198.1,198.06,0.75708972]
[1735118205557,1.8716,198.1,198.07,23.776884]
[1735118209297,6.4536,198.11,198.07,23.776884]
[1735118209468,6.4536,198.11,198.08,0.75703742]
[1735118212491,6.4536,198.11,198.07,23.776884]
[1735118213291,6.4536,198.11,198.07,20.0]
[1735118213482,6.4536,198.11,198.05,23.776884]
[1735118213695,6.4536,198.11,198.04,0.75709195]
[1735118214064,6.4536,198.11,198.03,0.75720346]
[1735118214871,6.4536,198.11,198.04,23.776884]
[1735118215591,1.8649,198.1,198.03,43.776884]
[1735118216095,1.8649,198.1,198.05,20.0]
[1735118216260,1.8649,198.1,198.06,20.0]
[1735118223317,1.8649,198.1,198.07,23.776884]
[1735118224765,6.4536,198.11,198.08,30.75708866]
[1735118224989,1.8439,198.15,198.09,23.776884]
[1735118225191,1.8439,198.15,198.1,0.75695179]
[1735118225694,1.8439,198.15,198.11,23.776884]
[1735118225889,6.4698,198.16,198.13,23.776884]
[1735118226090,2.55002,198.17,198.16,20.0]
[1735118227298,2.55002,198.17,198.13,23.776884]
[1735118227469,2.55002,198.17,198.12,23.776884]
[1735118227669,2.55002,198.17,198.15,20.0]
[1735118227893,2.55002,198.17,198.12,20.0]
[1735118228679,2.55002,198.17,198.09,23.776884]
[1735118228874,2.55002,198.17,198.07,0.75705182]
[1735118229078,8.3137,198.16,198.05,0.75705463]
[1735118230002,0.12549,198.15,198.03,6.40402568]
[1735118230502,0.12549,198.15,198.03,0.75714336]
[1735118231185,0.12549,198.15,198.04,23.776884]
[1735118233002,0.12549,198.13,198.01,0.75723804]
[1735118233184,0.12549,198.11,197.99,0.75731522]
[1735118233389,6.4698,198.1,197.99,0.75731522]
[1735118234199,6.4698,198.1,198.02,20.0]
[1735118234406,6.4698,198.1,198.03,20.0]
[1735118234599,6.4698,198.1,198.04,53.776884]
[1735118234906,6.4698,198.1,198.05,0.75714335]
[1735118235283,6.4698,198.1,198.04,23.776884]
[1735118238416,6.4698,198.1,198.06,23.776884]
[1735118240205,1.8439,198.12,198.1,20.0]
[1735118243219,6.0613,198.15,198.11,0.75697529]
[1735118243920,6.0613,198.15,198.1,20.0]
[1735118246688,6.0613,198.15,198.06,23.776884]
[1735118246887,1.8028,198.14,198.03,30.7570159]
[1735118248133,1.8028,198.14,198.04,23.776884]
[1735118249128,1.8028,198.14,198.03,23.776884]
[1735118249504,1.8028,198.14,198.03,53.776884]
[1735118249718,1.8028,198.14,198.05,23.776884]
[1735118250419,1.8028,198.14,198.04,23.776884]
[1735118250847,0.12549,198.13,198.04,23.776884]
[1735118251139,0.12549,198.13,198.04,20.0]
[1735118251140,6.2962,198.12,198.04,20.0]
[1735118254239,6.2962,198.12,198.05,24.53415334]
[1735118254741,6.2962,198.12,198.07,30.0]
[1735118254923,6.2962,198.12,198.08,24.53391378]
[1735118255941,1.8028,198.14,198.09,30.0]
[1735118256135,1.8028,198.14,198.12,20.0]
[1735118256344,1.8028,198.14,198.1,0.75696914]
[1735118256517,1.8028,198.14,198.11,23.776884]
[1735118258041,1.8028,198.14,198.07,12.6217]
[1735118258042,1.8028,198.14,198.09,20.0]
[1735118259532,1.8028,198.14,198.1,24.53389039]
[1735118260333,1.8028,198.14,198.1,23.776884]
[1735118261453,1.8028,198.14,198.1,24.53386412]
[1735118263054,1.8028,198.14,198.1,23.776884]
[1735118264756,1.8028,198.14,198.07,0.75697432]
[1735118264966,1.8028,198.14,198.08,23.776884]
[1735118265255,1.8028,198.14,198.07,23.776884]
[1735118270062,6.3364,198.12,198.04,20.0]
[1735118272159,6.3364,198.12,198.02,20.0]
[1735118272368,6.3364,198.12,198.03,23.776884]
[1735118273355,6.3364,198.12,198.04,0.75721945]
[1735118273547,6.3364,198.12,198.05,53.776884]
[1735118273745,6.3364,198.12,198.07,23.776884]
[1735118276871,6.3364,198.12,198.08,0.75705645]
[1735118277169,1.8028,198.14,198.09,53.776884]
[1735118277367,1.8028,198.14,198.11,23.776884]
[1735118277788,1.8028,198.14,198.13,20.0]
[1735118278080,8.88642,198.17,198.13,23.776884]
[1735118280358,8.88642,198.17,198.13,20.0]
[1735118281288,8.88642,198.17,198.1,24.53386063]
[1735118283584,8.88642,198.17,198.13,20.0]
[1735118284379,8.88642,198.17,198.1,24.53386063]
[1735118285073,8.88642,198.17,198.09,23.776884]
[1735118285384,1.7736,198.16,198.09,23.776884]
[1735118285554,1.7736,198.16,198.07,20.0]
[1735118288979,1.7736,198.16,198.08,23.776884]
[1735118289177,1.7736,198.16,198.08,24.53398426]
[1735118289387,1.7736,198.16,198.1,23.776884]
[1735118289572,1.7736,198.16,198.13,20.0]
[1735118289776,1.7736,198.16,198.14,23.776884]
[1735118294392,8.88642,198.17,198.16,43.776884]
[1735118294573,2.55002,198.17,198.16,43.776884]
[1735118296714,2.55002,198.17,198.16,23.776884]
[1735118297077,2.55002,198.17,198.13,43.776884]
[1735118302587,2.55002,198.17,198.11,20.0]
[1735118302792,6.5988,198.16,198.09,20.0]
[1735118303706,6.5988,198.16,198.11,20.0]
[1735118304606,6.5988,198.16,198.1,23.776884]
[1735118307291,6.5988,198.16,198.12,23.776884]
[1735118309308,6.5988,198.16,198.09,20.75694249]
[1735118309516,1.7752,198.15,198.05,13.38001936]
[1735118310489,1.7752,198.15,198.05,0.75701936]
[1735118310821,1.7752,198.15,198.02,43.38206891]
[1735118311810,1.7752,198.15,198.06,23.776884]
[1735118313830,1.7752,198.15,198.08,23.776884]
[1735118319122,1.7752,198.15,198.05,20.0]
[1735118319309,6.0021,198.13,198.02,7.90671623]
[1735118319825,1.90069,198.12,198.02,7.90671623]
[1735118320328,1.90069,198.12,198.0,0.75735043]
[1735118320904,1.90069,198.12,197.99,0.75735502]
[1735118321099,1.90069,198.12,198.03,20.0]
[1735118321724,1.90069,198.12,198.01,20.0]
[1735118321915,1.7752,198.1,197.99,0.75735502]
[1735118322117,1.7752,198.1,197.98,0.75739906]
[1735118323128,1.7752,198.1,197.99,23.776884]
[1735118323931,0.12549,198.09,197.98,0.75739906]
[1735118324135,0.12549,198.09,198.0,20.0]
[1735118326936,1.7752,198.1,198.01,23.776884]
[1735118327132,1.7752,198.1,198.01,24.53427869]
[1735118327432,1.7752,198.1,198.01,23.776884]
[1735118330737,1.7752,198.1,198.0,20.0]
[1735118330936,6.4083,198.09,197.99,0.75729839]
[1735118331137,6.4083,198.09,197.98,24.53430027]
[1735118331643,1.7691,198.08,197.98,23.776884]
[1735118331824,1.7691,198.05,197.94,0.75746458]
[1735118332137,1.7691,198.05,197.92,42.6313]
[1735118332138,1.7691,198.05,197.93,0.75756432]
[1735118332832,1.7691,198.05,197.93,30.75756432]
[1735118333211,1.7691,198.05,197.97,23.776884]
[1735118333939,1.7691,198.05,197.96,20.0]
[1735118334141,1.7691,198.01,197.93,6.50291123]
[1735118334342,1.7691,198.01,197.9,0.75762579]
[1735118334913,6.53379,198.0,197.88,19.33749121]
[1735118335113,6.53379,198.0,197.88,6.50291123]
[1735118335348,0.12549,197.98,197.88,6.50291123]
[1735118335643,0.12549,197.98,197.84,8.66455839]
[1735118335842,0.12549,197.98,197.85,30.0]
[1735118335843,8.1774,197.97,197.85,30.0]
[1735118336052,8.1774,197.97,197.85,36.49132606]
[1735118336355,8.1774,197.97,197.85,6.49132606]
[1735118337150,0.12549,197.96,197.86,23.776884]
[1735118337330,0.12549,197.94,197.82,0.75796647]
[1735118337536,1.7691,197.91,197.79,30.75804036]